Workbook

Sheet Manual Input Report
B1: Load Rating Summary
N3: Structure ID: | AO3: Analyst:
N4: Location: | AP4: QC By:
AJ6: Load Rating Date (B.LR.03):
E7: Structure Identification
C8: Feature Intersected: | AN8: County:
C10: Material Main Span (B.SP.04): | AN10: NHS Designation:
D12: Design for Main Span (B.SP.06): | AP12: District:
E14: Year Built: | AM14: Admin Owner:
F16: Maintainer: | AP16: Name:
F17: Owner: | AN17: Emergency Route:
E18: Description
E22: Ratings and Loads
C23: Deck (B.C.01): | R23: SuperStructure (B.C.02): | AJ23: Substructure (B.C.03): | AV23: Culvert (B.C.04):
C25: Design Load (B.LR.01): | AE25: Type of Overlay:
B26: Design Method (B.LR.02): | AF26: Overlay Thickness / Fill Height (in):
C27: LR Method (B.LR.04): | AG27: Load Posting Status (B.PS.01):
B29: Truck | G29: Inventory Rating | P29: Operating Rating | U29: Legal | AC29: Posting Value (tons) | AM29: Control Location
G32: Rating Factor | L32: Tons | P32: Rating Factor | S32: Tons | U32: Rating Factor | Z32: Tons | AM32: Span | AO32: Location (ft) | AS32: Percent of Span
AJ35: Member | AV35: Limit State
B36: HS/HL93 | AC36: N/A
B37: HS/HL93 | AC37: N/A
B38: SU4 | AC38: -
B39: SU5 | AC39: -
B40: SU6 | AC40: -
B41: SU7 | AC41: -
B42: NE Type 3 | AC42: =IF('Dropdown '!B262= 0,"",'Dropdown '!B262) -> 
B43: NE Type 3S2 | AC43: =IF(U43<1,TRUNC(Z43),"") -> 0
B44: NE Type 3-3 | AC44: =IF(U44<1,TRUNC(Z44),"") -> 0
B45: EV2 | AC45: N/A
B46: EV3 | AC46: N/A
B47: Triple-Triple | AC47: N/A
AC48: Documentation
O51: Rating Information Provided: | AD51: Plans | AL51: Field Measurements
AD53: Testing | AK53: No Information Exists
Q54: BrR Computations Submitted:
Q55: Analysis Engine Version:
G56: =IF(AC42<>"",AC42&"T","t") -> t | Q56: Rating Program Used:
G57: 0T
G58: =IF(AC43<>"",AC43&"T","t") -> 0T | M58: Additional Comments
G59: =IF(AC45="","t",MIN('Dropdown '!B157:B162)&"T") -> 0T
G60: =IF(AC44<>"",AC44&"T","t") -> 0T
G61: =IF(AC47="","t",MIN('Dropdown '!B159:B164)&"T") -> 0T | AZ61: 2025-09-12
B64: EMERGENCY VEHICLE AXEL WEIGHT LIMIT
C68: SINGLE
C70: TANDEM
C72: GROSS
G75: The Rating and Posting Values for this structure is based on a theoretical analysis of the structural elements involved and on a limited amount of information concerning the structural condition. These weight limits are intended only as a general guideline and may be varied accordingly by the officials responsible for this structure after an investigation of the structural condition, reaction to vehicular loads and any other items where judgment is required to establish a proper weight limit.
C78: BR Form 465, version 2.0 [Updated:1 9 2026] | AT78: Print Time: | AX78: 01/14/2026 02:26:59PM

Sheet Culvert Report (hidden)
B1: Load Rating Summary
N3: Structure ID: | X3: C006901205 | AO3: Analyst: | AT3: A. Kime
N4: Location: | X4: 5.5N 7.4E BERTRAND | AP4: QC By: | AT4: T. Ismail
AJ6: Load Rating Date (B.LR.03): | AT6: 2026-05-07
E7: Structure Identification
C8: Feature Intersected: | S8: IRRIGATION CANAL | AN8: County: | AT8: Phelps(137)
C10: Material Main Span (B.SP.04): | S10: C01 R/C- Cast in Place | AN10: NHS Designation: | AT10: N Non-NHS
D12: Design for Main Span (B.SP.06): | S12: F02 Frame- Four Sided | AP12: District: | AT12: District 7
E14: Year Built: | S14: 2026 | AM14: Admin Owner: | AT14: Phelps County
F16: Maintainer: | S16: L01 County Highway Agency | AP16: Name:
F17: Owner: | S17: L01 County Highway Agency | AN17: Emergency Route: | AT17: N Not an Evac Emergency Rte
E18: Description
E22: Ratings and Loads
C23: Deck (B.C.01): | H23: N N/A | R23: SuperStructure (B.C.02): | AB23: N N/A | AJ23: Substructure (B.C.03): | AP23: N N/A | AV23: Culvert (B.C.04): | BB23: 9 Excellent
C25: Design Load (B.LR.01): | T25: HL93 | AE25: Type of Overlay: | AS25: E01 Earth- Gravel or Soil
B26: Design Method (B.LR.02): | T26: LRFD | AF26: Overlay Thickness / Fill Height (in): | AS26: 48
C27: LR Method (B.LR.04): | T27: LRFR | AG27: Load Posting Status (B.PS.01): | AS27: PO
B29: Truck | G29: Inventory Rating | P29: Operating Rating | U29: Legal | AC29: Posting Value (tons) | AM29: Control Location
G32: Rating Factor | L32: Tons | P32: Rating Factor | S32: Tons | U32: Rating Factor | Z32: Tons | AM32: Span | AO32: Location (ft) | AS32: Percent of Span
AJ35: Member | AV35: Limit State
B36: HS/HL93 | G36: =TRUNC('Dropdown '!G213,2) -> 1.51 | L36: =G36*36 -> 54.36 | AC36: N/A | AJ36: ='Dropdown '!H215 -> Top Slab | AM36: ='Dropdown '!I215 -> 1 | AO36: ='Dropdown '!I213 -> 2.4 | AS36: ='Dropdown '!J213 -> 20 | AV36: ='Dropdown '!K213 -> Flexure
B37: HS/HL93 | P37: =TRUNC('Dropdown '!G218,2) -> 1.96 | S37: ='Dropdown '!F218 -> 70.75 | AC37: N/A | AJ37: ='Dropdown '!H220 -> Top Slab | AM37: ='Dropdown '!I220 -> 1 | AO37: ='Dropdown '!I218 -> 2.4 | AS37: ='Dropdown '!J218 -> 20 | AV37: ='Dropdown '!K218 -> Flexure
B38: SU4 | U38: =TRUNC('Culvert Copy and Paste'!F11,2) -> 2.27 | Z38: =U38*27 -> 61.29 | AC38: - | AJ38: ='Dropdown '!I232 -> Bottom Slab | AM38: ='Dropdown '!J232 -> 3 | AO38: ='Culvert Copy and Paste'!H11 -> 7.2 | AS38: ='Culvert Copy and Paste'!I11 -> 60 | AV38: ='Culvert Copy and Paste'!J11 -> Flexure
B39: SU5 | U39: =TRUNC('Culvert Copy and Paste'!F12,2) -> 2.25 | Z39: =U39*31 -> 69.75 | AC39: - | AJ39: ='Dropdown '!I233 -> Bottom Slab | AM39: ='Dropdown '!J233 -> 3 | AO39: ='Culvert Copy and Paste'!H12 -> 7.2 | AS39: ='Culvert Copy and Paste'!I12 -> 60 | AV39: ='Culvert Copy and Paste'!J12 -> Flexure
B40: SU6 | U40: =TRUNC('Culvert Copy and Paste'!F13,2) -> 2.28 | Z40: =U40*34.75 -> 79.23 | AC40: - | AJ40: ='Dropdown '!I234 -> Bottom Slab | AM40: ='Dropdown '!J234 -> 3 | AO40: ='Culvert Copy and Paste'!H13 -> 7.2 | AS40: ='Culvert Copy and Paste'!I13 -> 60 | AV40: ='Culvert Copy and Paste'!J13 -> Flexure
B41: SU7 | U41: =TRUNC('Culvert Copy and Paste'!F14,2) -> 2.3 | Z41: =U41*38.75 -> 89.125 | AC41: - | AJ41: ='Dropdown '!I235 -> Bottom Slab | AM41: ='Dropdown '!J235 -> 3 | AO41: ='Culvert Copy and Paste'!H14 -> 7.2 | AS41: ='Culvert Copy and Paste'!I14 -> 60 | AV41: ='Culvert Copy and Paste'!J14 -> Flexure
B42: NE Type 3 | U42: =TRUNC('Culvert Copy and Paste'!F6,2) -> 2.33 | Z42: =U42*25 -> 58.25 | AC42: =IF('Dropdown '!B245= 0,"",'Dropdown '!B245) ->  | AJ42: ='Dropdown '!I227 -> Top Slab | AM42: ='Dropdown '!J227 -> 1 | AO42: ='Culvert Copy and Paste'!H6 -> 2.4 | AS42: ='Culvert Copy and Paste'!I6 -> 20 | AV42: ='Culvert Copy and Paste'!J6 -> Flexure
B43: NE Type 3S2 | U43: =TRUNC('Culvert Copy and Paste'!F7,2) -> 2.55 | Z43: =U43*37 -> 94.35 | AC43: =IF(U43<1,TRUNC(Z43),"") ->  | AJ43: ='Dropdown '!I228 -> Top Slab | AM43: ='Dropdown '!J228 -> 1 | AO43: ='Culvert Copy and Paste'!H7 -> 2.4 | AS43: ='Culvert Copy and Paste'!I7 -> 20 | AV43: ='Culvert Copy and Paste'!J7 -> Flexure
B44: NE Type 3-3 | U44: =TRUNC('Culvert Copy and Paste'!F8,2) -> 2.83 | Z44: =U44*43 -> 121.69 | AC44: =IF(U44<1,TRUNC(Z44),"") ->  | AJ44: ='Dropdown '!I229 -> Top Slab | AM44: ='Dropdown '!J229 -> 1 | AO44: ='Culvert Copy and Paste'!H8 -> 2.4 | AS44: ='Culvert Copy and Paste'!I8 -> 20 | AV44: ='Culvert Copy and Paste'!J8 -> Flexure
B45: EV2 | U45: =TRUNC('Culvert Copy and Paste'!F9,2) -> 1.75 | Z45: =U45*28.75 -> 50.3125 | AC45: N/A | AJ45: ='Dropdown '!I230 -> Top Slab | AM45: ='Dropdown '!J230 -> 1 | AO45: ='Culvert Copy and Paste'!H9 -> 2.4 | AS45: ='Culvert Copy and Paste'!I9 -> 20 | AV45: ='Culvert Copy and Paste'!J9 -> Flexure
B46: EV3 | U46: =TRUNC('Culvert Copy and Paste'!F10,2) -> 1.28 | Z46: =U46*43 -> 55.04 | AC46: N/A | AJ46: ='Dropdown '!I231 -> Top Slab | AM46: ='Dropdown '!J231 -> 1 | AO46: ='Culvert Copy and Paste'!H10 -> 2.4 | AS46: ='Culvert Copy and Paste'!I10 -> 20 | AV46: ='Culvert Copy and Paste'!J10 -> Flexure
B47: Triple-Triple | P47: =TRUNC('Culvert Copy and Paste'!F15,2) -> 2.87 | S47: =P47*70 -> 200.9 | AC47: N/A | AJ47: ='Dropdown '!I236 -> Bottom Slab | AM47: ='Dropdown '!J236 -> 3 | AO47: ='Culvert Copy and Paste'!H15 -> 7.2 | AS47: ='Culvert Copy and Paste'!I15 -> 60 | AV47: ='Culvert Copy and Paste'!J15 -> Flexure
AC48: Documentation
O51: Rating Information Provided: | AC51: X | AD51: Plans | AL51: Field Measurements
AD53: Testing | AK53: No Information Exists
Q54: BrR Computations Submitted: | AC54: Yes
Q55: Analysis Engine Version: | AC55: AASHTO LFR Engine Version 7.5.1.3001
G56: =IF(AC42<>"",AC42&"T","t") -> t | Q56: Rating Program Used: | AC56: 0 AASHTOWare BrR
G57: 0T
G58: =IF(AC43<>"",AC43&"T","t") -> t | M58: Additional Comments
G59: =IF(AC45="","t",MIN('Dropdown '!B157:B162)&"T") -> 0T
G60: =IF(AC44<>"",AC44&"T","t") -> t
G61: =IF(AC47="","t",MIN('Dropdown '!B159:B164)&"T") -> 0T | AZ61: 2025-09-12
B64: EMERGENCY VEHICLE AXEL WEIGHT LIMIT
C68: SINGLE
C70: TANDEM
C72: GROSS
G75: The Rating and Posting Values for this structure is based on a theoretical analysis of the structural elements involved and on a limited amount of information concerning the structural condition. These weight limits are intended only as a general guideline and may be varied accordingly by the officials responsible for this structure after an investigation of the structural condition, reaction to vehicular loads and any other items where judgment is required to establish a proper weight limit.
C78: BR Form 465, version 2.0 [Updated:1 9 2026] | AT78: Print Time: | AX78: 05/07/2026 03:19:18PM

Sheet Culvert Copy and Paste (hidden)
A1: FROM BrR: | R1: Only Use for Culverts
A2: HL-93 (US) | B2: Axle Load | C2: LRFR | D2: Inventory | E2: 62.09 | F2: 1.725 | G2: Top Slab 2 | H2: 12 | I2: 100 | J2: Flexure | K2: As Requested | L2: As Requested
A3: HL-93 (US) | B3: Axle Load | C3: LRFR | D3: Operating | E3: 80.48 | F3: 2.236 | G3: Top Slab 2 | H3: 12 | I3: 100 | J3: Flexure | K3: As Requested | L3: As Requested
A4: HL-93 (US) | B4: Tandem | C4: LRFR | D4: Inventory | E4: 54.58 | F4: 1.516 | G4: Top Slab 1 | H4: 2.4 | I4: 20 | J4: Flexure | K4: As Requested | L4: As Requested
A5: HL-93 (US) | B5: Tandem | C5: LRFR | D5: Operating | E5: 70.75 | F5: 1.965 | G5: Top Slab 1 | H5: 2.4 | I5: 20 | J5: Flexure | K5: As Requested | L5: As Requested
A6: 1 NE Type 3 | B6: Axle Load | C6: LRFR | D6: Legal | E6: 58.38 | F6: 2.335 | G6: Top Slab 1 | H6: 2.4 | I6: 20 | J6: Flexure | K6: As Requested | L6: As Requested
A7: 2 NE Type 3S2 | B7: Axle Load | C7: LRFR | D7: Legal | E7: 94.52 | F7: 2.555 | G7: Top Slab 1 | H7: 2.4 | I7: 20 | J7: Flexure | K7: As Requested | L7: As Requested
A8: 3 NE Type 3-3 | B8: Axle Load | C8: LRFR | D8: Legal | E8: 121.96 | F8: 2.836 | G8: Top Slab 1 | H8: 2.4 | I8: 20 | J8: Flexure | K8: As Requested | L8: As Requested
A9: EV2 | B9: Axle Load | C9: LRFR | D9: Legal | E9: 50.33 | F9: 1.751 | G9: Top Slab 1 | H9: 2.4 | I9: 20 | J9: Flexure | K9: As Requested | L9: As Requested
A10: EV3 | B10: Axle Load | C10: LRFR | D10: Legal | E10: 55.06 | F10: 1.281 | G10: Top Slab 1 | H10: 2.4 | I10: 20 | J10: Flexure | K10: As Requested | L10: As Requested
A11: SU4 | B11: Axle Load | C11: LRFR | D11: Legal | E11: 61.39 | F11: 2.274 | G11: Bottom Slab 3 | H11: 7.2 | I11: 60 | J11: Flexure | K11: As Requested | L11: As Requested
A12: SU5 | B12: Axle Load | C12: LRFR | D12: Legal | E12: 69.93 | F12: 2.256 | G12: Bottom Slab 3 | H12: 7.2 | I12: 60 | J12: Flexure | K12: As Requested | L12: As Requested
A13: SU6 | B13: Axle Load | C13: LRFR | D13: Legal | E13: 79.35 | F13: 2.284 | G13: Bottom Slab 3 | H13: 7.2 | I13: 60 | J13: Flexure | K13: As Requested | L13: As Requested
A14: SU7 | B14: Axle Load | C14: LRFR | D14: Legal | E14: 89.29 | F14: 2.304 | G14: Bottom Slab 3 | H14: 7.2 | I14: 60 | J14: Flexure | K14: As Requested | L14: As Requested
A15: P3 | B15: Axle Load | C15: LRFR | D15: Permit | E15: 201.3 | F15: 2.876 | G15: Bottom Slab 3 | H15: 7.2 | I15: 60 | J15: Flexure | K15: As Requested | L15: As Requested

Sheet Copy and Paste (hidden)
A1: FROM BrR
A2: Bridge Name: C000101510 Used 36 ksi ..
A3: NBI Structure ID: C000101510
A4: Bridge ID: C000101510
A6: Analyzed By: STN\Joel.Buettner
A7: Analyze Date: Monday, April 13, 2026 15:04:50
A8: Analysis Engine: AASHTO LFR Engine Version 7.5.1.3001
A9: Analysis Preference Setting: None
A11: Report By: STN\Joel.Buettner
A12: Report Date: Monday, April 13, 2026 15:05:41
A14: Structure Definition Name: Span 1
A15: Member Name: G2
A16: Member Alternative Name: Copy of W 16 X 58
A18: Load Factor Rating Summary
A20: Girder Summary
C21: Rating | E21: Capacity | G21: Location
A22: Live Load | C22: Factor | D22: Controls | E22: (Ton) | F22: Span | G22: (ft) | H22: Percent | I22: Impact | J22: Lane
A23: 1 NE Type 3 | B23: Legal Opr. | C23: 1.494 | D23: Design Flexure - Steel | E23: 37.36 | F23: 1 | G23: 12.25 | H23: 50 | I23: As Requested | J23: As Requested
A24: 2 NE Type 3S2 | B24: Legal Opr. | C24: 1.565 | D24: Design Flexure - Steel | E24: 57.91 | F24: 1 | G24: 12.25 | H24: 50 | I24: As Requested | J24: As Requested
A25: 3 NE Type 3-3 | B25: Legal Opr. | C25: 1.815 | D25: Design Flexure - Steel | E25: 78.03 | F25: 1 | G25: 12.25 | H25: 50 | I25: As Requested | J25: As Requested
A26: EV2 | B26: Legal Opr. | C26: 1.269 | D26: Design Flexure - Steel | E26: 36.49 | F26: 1 | G26: 12.25 | H26: 50 | I26: As Requested | J26: As Requested
A27: EV3 | B27: Legal Opr. | C27: 0.82 | D27: Design Flexure - Steel | E27: 35.24 | F27: 1 | G27: 12.25 | H27: 50 | I27: As Requested | J27: As Requested
A28: HS 20-44 | B28: Inventory | C28: 0.796 | D28: Design Flexure - Steel | E28: 28.64 | F28: 1 | G28: 12.25 | H28: 50 | I28: As Requested | J28: As Requested
A29: HS 20-44 | B29: Operating | C29: 1.329 | D29: Design Flexure - Steel | E29: 47.83 | F29: 1 | G29: 12.25 | H29: 50 | I29: As Requested | J29: As Requested
A30: P3 | B30: Permit Opr. | C30: 0.938 | D30: Design Flexure - Steel | E30: 65.69 | F30: 1 | G30: 12.25 | H30: 50 | I30: As Requested | J30: As Requested
A31: SU4 | B31: Legal Opr. | C31: 1.256 | D31: Design Flexure - Steel | E31: 33.92 | F31: 1 | G31: 12.25 | H31: 50 | I31: As Requested | J31: As Requested
A32: SU5 | B32: Legal Opr. | C32: 1.161 | D32: Design Flexure - Steel | E32: 36 | F32: 1 | G32: 12.25 | H32: 50 | I32: As Requested | J32: As Requested
A33: SU6 | B33: Legal Opr. | C33: 1.079 | D33: Design Flexure - Steel | E33: 37.51 | F33: 1 | G33: 12.25 | H33: 50 | I33: As Requested | J33: As Requested
A34: SU7 | B34: Legal Opr. | C34: 1.075 | D34: Design Flexure - Steel | E34: 41.65 | F34: 1 | G34: 12.25 | H34: 50 | I34: As Requested | J34: As Requested
A36: Note:
A37: "N/A" indicates not applicable
A38: "**" indicates not available

Sheet Report (hidden)
B1: Load Rating Summary
N3: Structure ID: | X3: C000101510 | AO3: Analyst: | AT3: Joel Buettner
N4: Location: | X4: 12990 S. BLADEN AVENUE | AP4: QC By:
AJ6: Load Rating Date (B.LR.03): | AT6: 2026-04-13
E7: Structure Identification
C8: Feature Intersected: | S8: COTTONWOOD CREEK | AN8: County: | AT8: Adams(001)
C10: Material Main Span (B.SP.04): | S10: S01 Steel- Rolled | AN10: NHS Designation: | AT10: N Non-NHS
D12: Design for Main Span (B.SP.06): | S12: G01 Girder/Beam- I Shaped adj. | AP12: District: | AT12: District 4
E14: Year Built: | S14: 1974 | AG14: Admin Owner: | AT14: Admins County
F16: Maintainer: | S16: L01 County Highway Agency | AP16: Name: | AT16: O 6-1
F17: Owner: | S17: L01 County Highway Agency | AN17: Emergency Route: | AT17: N Not an Evac Emergency Rte
E18: Description
E22: Ratings and Loads
A23: Deck (B.C.01): | H23: 6 Satisfactory | R23: SuperStructure (B.C.02): | AB23: 6 Satisfactory | AJ23: Substructure (B.C.03): | AP23: 7 Good | AV23: Culvert (B.C.04): | BB23: N N/A
C25: Design Load (B.LR.01): | T25: H15 | AE25: Type of Overlay:
B26: Design Method (B.LR.02): | T26: LFD | AF26: Overlay Thickness / Fill Height (in):
C27: LR Method (B.LR.04): | T27: LFR | AG27: Load Posting Status (B.PS.01):
B29: Truck | G29: Inventory Rating | P29: Operating Rating | U29: Legal | AC29: Posting Value (tons) | AM29: Control Location
G32: Rating Factor | L32: Tons | P32: Rating Factor | S32: Tons | U32: Rating Factor | Z32: Tons | AM32: Span | AO32: Location (ft) | AS32: Percent of Span
AJ35: Member | AV35: Limit State
B36: HS/HL93 | G36: =TRUNC('Copy and Paste'!C28,2) -> 0.79 | L36: =G36*36 -> 28.44 | AC36: N/A | AJ36: ='Dropdown '!$C$194 -> G2 | AM36: ='Copy and Paste'!F28 -> 1 | AO36: ='Copy and Paste'!G28 -> 12.25 | AS36: ='Copy and Paste'!H28 -> 50 | AV36: ='Copy and Paste'!D28 -> Design Flexure - Steel
B37: HS/HL93 | P37: =TRUNC('Copy and Paste'!C29,2) -> 1.32 | S37: =P37*36 -> 47.52 | AC37: N/A | AJ37: ='Dropdown '!$C$194 -> G2 | AM37: ='Copy and Paste'!F29 -> 1 | AO37: ='Copy and Paste'!G29 -> 12.25 | AS37: ='Copy and Paste'!H29 -> 50 | AV37: ='Copy and Paste'!D29 -> Design Flexure - Steel
B38: SU4 | U38: =TRUNC('Copy and Paste'!C31,2) -> 1.25 | Z38: =U38*27 -> 33.75 | AC38: - | AJ38: ='Dropdown '!$C$194 -> G2 | AM38: ='Copy and Paste'!F31 -> 1 | AO38: ='Copy and Paste'!G31 -> 12.25 | AS38: ='Copy and Paste'!H31 -> 50 | AV38: ='Copy and Paste'!D31 -> Design Flexure - Steel
B39: SU5 | U39: =TRUNC('Copy and Paste'!C32,2) -> 1.16 | Z39: =U39*31 -> 35.96 | AC39: - | AJ39: ='Dropdown '!$C$194 -> G2 | AM39: ='Copy and Paste'!F32 -> 1 | AO39: ='Copy and Paste'!G32 -> 12.25 | AS39: ='Copy and Paste'!H32 -> 50 | AV39: ='Copy and Paste'!D32 -> Design Flexure - Steel
B40: SU6 | U40: =TRUNC('Copy and Paste'!C33,2) -> 1.07 | Z40: =U40*34.75 -> 37.1825 | AC40: - | AJ40: ='Dropdown '!$C$194 -> G2 | AM40: ='Copy and Paste'!F33 -> 1 | AO40: ='Copy and Paste'!G33 -> 12.25 | AS40: ='Copy and Paste'!H33 -> 50 | AV40: ='Copy and Paste'!D33 -> Design Flexure - Steel
B41: SU7 | U41: =TRUNC('Copy and Paste'!C34,2) -> 1.07 | Z41: =U41*38.75 -> 41.4625 | AC41: - | AJ41: ='Dropdown '!$C$194 -> G2 | AM41: ='Copy and Paste'!F34 -> 1 | AO41: ='Copy and Paste'!G34 -> 12.25 | AS41: ='Copy and Paste'!H34 -> 50 | AV41: ='Copy and Paste'!D34 -> Design Flexure - Steel
B42: NE Type 3 | U42: =TRUNC('Copy and Paste'!C23,2) -> 1.49 | Z42: =U42*25 -> 37.25 | AC42: =IF('Dropdown '!B159<>0,'Dropdown '!B159,"") ->  | AJ42: ='Dropdown '!$C$194 -> G2 | AM42: ='Copy and Paste'!F23 -> 1 | AO42: ='Copy and Paste'!G23 -> 12.25 | AS42: ='Copy and Paste'!H23 -> 50 | AV42: ='Copy and Paste'!D23 -> Design Flexure - Steel
B43: NE Type 3S2 | U43: =TRUNC('Copy and Paste'!C24,2) -> 1.56 | Z43: =U43*37 -> 57.72 | AC43: =IF(U43<1,TRUNC(Z43),"") ->  | AJ43: ='Dropdown '!$C$194 -> G2 | AM43: ='Copy and Paste'!F24 -> 1 | AO43: ='Copy and Paste'!G24 -> 12.25 | AS43: ='Copy and Paste'!H24 -> 50 | AV43: ='Copy and Paste'!D24 -> Design Flexure - Steel
B44: NE Type 3-3 | U44: =TRUNC('Copy and Paste'!C25,2) -> 1.81 | Z44: =U44*43 -> 77.83 | AC44: =IF(U44<1,TRUNC(Z44),"") ->  | AJ44: ='Dropdown '!$C$194 -> G2 | AM44: ='Copy and Paste'!F25 -> 1 | AO44: ='Copy and Paste'!G25 -> 12.25 | AS44: ='Copy and Paste'!H25 -> 50 | AV44: ='Copy and Paste'!D25 -> Design Flexure - Steel
B45: EV2 | U45: =TRUNC('Copy and Paste'!C26,2) -> 1.26 | Z45: =U45*28.75 -> 36.225 | AC45: N/A | AJ45: ='Dropdown '!$C$194 -> G2 | AM45: ='Copy and Paste'!F26 -> 1 | AO45: ='Copy and Paste'!G26 -> 12.25 | AS45: ='Copy and Paste'!H26 -> 50 | AV45: ='Copy and Paste'!D26 -> Design Flexure - Steel
B46: EV3 | U46: =TRUNC('Copy and Paste'!C27,2) -> 0.82 | Z46: =U46*43 -> 35.26 | AC46: N/A | AJ46: ='Dropdown '!$C$194 -> G2 | AM46: ='Copy and Paste'!F27 -> 1 | AO46: ='Copy and Paste'!G27 -> 12.25 | AS46: ='Copy and Paste'!H27 -> 50 | AV46: ='Copy and Paste'!D27 -> Design Flexure - Steel
B47: Triple-Triple | P47: =TRUNC('Copy and Paste'!C30,2) -> 0.93 | S47: =P47*70 -> 65.1 | AC47: N/A | AJ47: ='Dropdown '!$C$194 -> G2 | AM47: ='Copy and Paste'!F30 -> 1 | AO47: ='Copy and Paste'!G30 -> 12.25 | AS47: ='Copy and Paste'!H30 -> 50 | AV47: ='Copy and Paste'!D30 -> Design Flexure - Steel
AC48: Documentation
O51: Rating Information Provided: | AC51: X | AD51: Plans | AL51: Field Measurements
AD53: Testing | AK53: No Information Exists
Q54: BrR Computations Submitted: | AC54: Yes
Q55: Analysis Engine Version: | AC55: AASHTO LFR Engine Version 7.5.0.3001
G56: =IF(AC42="","t",AC42&"T") -> t | Q56: Rating Program Used: | AC56: 0 AASHTOWare BrR
G57: 0T
G58: =IF(AC43="","t",AC43&"T") -> t | M58: Additional Comments
G59: =IF(AC45="","t",MIN('Dropdown '!B157:B162)&"T") -> 0T
G60: =IF(AC44="","t",AC44&"T") -> t
G61: =IF(AC47="","t",MIN('Dropdown '!B159:B164)&"T") -> 0T
B64: EMERGENCY VEHICLE AXEL WEIGHT LIMIT
C68: SINGLE
C70: TANDEM
C72: GROSS
G75: The Rating and Posting Values for this structure is based on a theoretical analysis of the structural elements involved and on a limited amount of information concerning the structural condition. These weight limits are intended only as a general guideline and may be varied accordingly by the officials responsible for this structure after an investigation of the structural condition, reaction to vehicular loads and any other items where judgment is required to establish a proper weight limit.
C78: BR Form 465, version 2.0 [Updated:1 9 2026] | AT78: Print Time: | AX78: 01/09/2026 12:14:55PM

Sheet README
A1: README:
B4: In the textbox, press CTRL+SHIFT+ENTER to go to the next line
B7: Load Posting Status (B.PS.01) :
A18: Instructions:
A20: 1. Run BrR Analysis
A22: 2. Click on tools then on the Report Tool
A24: 3. Select analysis output (LFR/LRFR)
C33: 4. Select and generate the Overall Summary
A39: 5. Review the overall summary report output
A41: 6. Identify and select the controlling member output, including the Bridge Name
A42: Double check if the Inventory and Operating type is controlling in another member when using report function sheet!!!!
B49: Copy from here
AC97: To Here
J103: OR If a Culvert is being done
B120: Copy from here
AF135: To Here
A146: 7. Click on "Copy and Paste" sheet
A148: 8. Paste the controlling summary report in $A$2 as shown below
A178: 9. Click on the Report Tab, and fill out Bridge Identification data above the Bridge Description Box; some cells may have a drop-down menu
A213: 10. Add bridge description; add any additional ocmments, and make sure comments are visible in boxes
A215: 11. Click download button to generate LRSS in pdf format. The pdf will save to wherever this sheet will be placed.

Sheet Dropdown (hidden)
A1: Yes
A2: No
B3: Software Used
A4: 1 BARS-PC | B4: 0 AASHTOWare BrR | U4: County
A5: 10 NDOR Timber Program | B5: 1 Excel | U5: Adams(001)
A6: 11 NDOR Steel Program | B6: 2 Load Testing | U6: Antelope(003)
A7: 12 Consultant | B7: 3 Hand Calculations | U7: Arthur(005)
A8: 13 Hand Calcs | B8: 4 NDOT Assigned Rating | U8: Banner(007)
A9: 14 BrR | B9: 5 NDOT Policy | U9: Blaine(009)
A10: 15 LARS | B10: 6 Consultant | U10: Boone(011)
A11: 16 LARS | B11: 7 LARS | U11: Box Butte(0013)
A12: 2 BARS (mainframe) | B12: 8 BRASS | U12: Boyd(015)
A13: 3 BRASS | U13: Brown(017)
A14: 36 NDOR Assigned Rating | U14: Buffalo(019)
A15: 37 NDOR Policy | U15: Burt(021)
A16: 38 Engineering Judgement | U16: Butler(023)
A17: 4 VIRTIS | U17: Cass(025)
A18: 99 - | U18: Cedar(027)
A19: A Cycle A | U19: Chase(029)
A20: U Update | U20: Cherry(031)
U21: Cheyenne(033)
G22: Monday | U22: Clay(035)
A23: =_xlfn.TEXTSPLIT('[1]Copy and Paste Info '!A15,":") -> Member Name | B23: G2 | G23: Tuesday | U23: Colfax(037)
A24: =_xlfn.TEXTSPLIT('[1]Copy and Paste Info '!A8,":") -> Analysis Engine | B24: AASHTO LFR Engine Version 7.5.1.3001 | U24: Cuming(039)
A25: ='[1]Copy and Paste Info '!A12 -> Report Date: Wednesday, August 20, 2025 15:39:59 | U25: Custer(041)
U26: Dakota(043)
A27: =RIGHT(A25,8) -> 15:39:59 | U27: Dawes(045)
U28: Dawson(047)
B29: Span Type | U29: Deuel(049)
A30: 00 Other | B30: A01 Arch- Under Fill w/o Spandrel | U30: Dixon(051)
A31: 01 Slab | B31: A02 Arch- Open Spandrel | U31: Dodge(053)
A32: 02 Stringer/Girder | B32: A03 Arch- Closed Spandrel | U32: Douglas(055)
A33: 04 Tee Beam | B33: A04 Arch- Through | U33: Dundy(057)
A34: 05 Multiple Box Beam | B34: A05 Arch- Tied | U34: Fillmore(059)
A35: 06 Single/Spread Box | B35: B01 Box Girder/Beam- Single | U35: Franklin(061)
A36: 07 Frame | B36: B02 Box Girder/Beam- Mult adj. | U36: Frontier(063)
A37: 08 Orthotropic | B37: B03 Box Girder/Beam- Mult Spread | U37: Furnas(065)
A38: 09 Truss-Deck | B38: B04 Box Girder/Beam- Segmental | U38: Gage(067)
A39: 10 Truss-Thru | B39: F01 Frame- Three Sided | U39: Garden(069)
A40: 11 Arch-Deck | B40: F02 Frame- Four Sided | U40: Garfield(071)
A41: 12 Arch-Thru | B41: F03 Frame- K Shaped | U41: Gosper(073)
A42: 13 Suspension | B42: F04 Frame- Delta Shaped | U42: Grant(075)
A43: 14 Stayed Girder | B43: G01 Girder/Beam- I Shaped adj. | U43: Greeley(077)
A44: 15 Movable-Lift | B44: G02 Girder/Beam- I Shaped Spread | U44: Hall(079)
A45: 16 Movable-Basscule | B45: G03 Girder/Beam- Tee Beam | U45: Hamilton(081)
A46: 17 Movable-Swing | B46: G04 Girder/Beam- Inverted Tee | U46: Harlan(083)
A47: 18 Tunnel | B47: G05 Girder/Beam- Double Tee adj. | U47: Hayes(085)
A48: 19 Culvert | B48: G06 Girder/Beam- Double Tee Spread | U48: Hitchcock(087)
A49: 20 Mixed types | B49: G07 Girder/Beam- Channel adj. | U49: Holt(089)
A50: 21 Segmental Box Girder | B50: G08 Girder/Beam- Channel Spread | U50: Hooker(091)
A51: 22 Channel Beam | B51: G09 Girder/Beam- Girder & Floor Beam | U51: Howard(093)
B52: G10 Girder/Beam- Through Girder | U52: Jefferson(095)
B53: GX Girder/Beam - Other | C53: Material for Main Span | U53: Johnson(097)
A54: 1 Concrete | B54: L01 Cable- Suspension | C54: A01 Aluminum | U54: Kearney(099)
A55: 2 Concrete Continuous | B55: L02 Cable- Cable Stayed | C55: C01 R/C- Cast in Place | U55: Keith(101)
A56: 3 Steel | B56: L03 Cable- Extradosed | C56: C02 R/C- Precast | U56: Keya Paha(103)
A57: 4 Steel Continuous | B57: LX- Cable- Other | C57: C03 P/C- Pre Tensioned | U57: Kimball(105)
A58: 5 Prestress Concrete | B58: M01 Movable- Vertical Lift | C58: C04 P/C- Cast in Place PostTensioned | U58: Knox(107)
A59: 6 P/S Conc Continuous | B59: M02 Movable- Bascule | C59: C05 P/C- Precast PostTensioned | U59: Lancaster(109)
A60: 7 Wood or Timber | B60: M03 Moveable- Swing | C60: CX Concrete- other | U60: Lincoln(111)
A61: 8 Masonry | B61: MX Moveable - Other | C61: F01 FRP Composite- Aramid Fiber | U61: Logan(113)
A62: 9 Aluminum or Iron | B62: P01 Pipe- Rigid | C62: F02 FRP Composite- Carbon Fiber | U62: Loup(115)
A63: 0 Other | B63: P02 Pipe- Flexible | C63: F03 FRP Composite- Glass Fiber | U63: McPherson(117)
B64: S01 Slab- Solid | C64: FX FRP Composite- Other | U64: Madison(117)
A65: National Highway System indicator | B65: S02 Slab- Voided | C65: I01 Iron- Cast | U65: Merrick(121)
A66: N Non-NHS | B66: T01 Truss- Deck | C66: I02 Iron- Wrought | U66: Morrill(123)
A67: Y NHS | B67: T02 Truss- Through | C67: M01 Massonry- Block | U67: Nance(125)
B68: T03 Truss- Pony | C68: M02 Massonry- Stone | U68: Nemaha(127)
A69: District | B69: X01 Other- Railroad Flat Car | C69: P01 Plastic- Polyethylene | U69: Nuckolls(129)
A70: District 1 | B70: X02 Other- Ferry Transfer | C70: PX Plastic- Other | U70: Otoe(131)
A71: District 2 | B71: X03 Other- Floating | C71: S01 Steel- Rolled | U71: Pawnee(133)
A72: District 3 | B72: X Other | C72: S02 Steel- Welded | U72: Perkins(135)
A73: District 4 | C73: S03 Steel- Bolted | U73: Phelps(137)
A74: District 5 | C74: S04 Steel- Riveted | U74: Pierce(139)
A75: District 6 | C75: S05 Steel- Bolted&Riveted | U75: Platte(141)
A76: District 7 | C76: SX Steel- Other | U76: Polk(143)
A77: District 8 | C77: T01 Timber- Glue Laminated | U77: Red Willow(145)
C78: T02 Timber- Nail Laminated | U78: Richardson(147)
A79: Emergency Route | C79: T03 Timber- Solid Sawn | U79: Rock(149)
A80: N Not an Evac Emergency Rte | C80: T04 Timber- Stress Laminated | U80: Saline(151)
A81: Y Emergency Evac Rte | C81: TX Timber- Other | U81: Sarpy(153)
C82: X Other | U82: Saunders(155)
A83: Condition | U83: Scotts Bluff(157)
A84: N N/A | U84: Seward(159)
A85: 9 Excellent | U85: Sheridan(161)
A86: 8 Very Good | U86: Sherman(163)
A87: 7 Good | U87: Sioux(165)
A88: 6 Satisfactory | U88: Stanton(167)
A89: 5 Fair | U89: Thayer(169)
A90: 4 Poor | U90: Thomas(171)
A91: 3 Serious | U91: Thurston(173)
A92: 2 Critical | U92: Valley(175)
A93: 1 Imm. Failure | U93: Washington(177)
A94: 0 Failed | U94: Wayne(179)
A95: Design Load | U95: Webster(181)
A96: H10 | U96: Wheeler(183)
A97: H15 | U97: York(185)
A98: H20
A99: HS15
A100: HS20
A101: HS20M
A102: HS20Plus
A103: HL93 | U103: Admin Area
A104: HL93Plus | U104: 901 - Unknown
A105: RR Railroad | U105: 902 - Not Applicable
A106: U Unknown | U106: AL-Alliance
A107: X Other | U107: BL-Blair
U108: BT-Beatrice
U109: BV-Bellevue
U110: CL-Columbus
U111: CR-Crete
U112: EH-Elkhorn
U113: FM-Fremont
U114: GI-Grand Island
U115: GR-Gering
U116: HA-Hastings
U117: KY-Kearney
A118: Design Method | U118: LN-Lincoln
A119: ASD | U119: LV-La Vista
A120: LFD | U120: LX-Lexington
A121: LRFD | U121: MC-McCook
A122: U Unknown | U122: NC-Nebraska City
A123: X Other | U123: NF-Norfolk
U124: NP-North Platte
U125: OG-Ogallala
A126: Load Rating Method | U126: OM-Omaha
A127: LFR | U127: PP-Papillion
A128: ASR | U128: PS-Plattsmouth
A129: LRFR | U129: SD-Seward
A130: LT Load Testing | U130: SI-Sidney
A131: AR Assigned Rating | U131: XL-Holdredge
A132: EJ Engineering Judgement | U132: YR-York
A133: N No Rating Eval
U135: Maintainer/owner
U136: U Unknown
U137: P Private
U138: R Railroad
U139: X Other
U140: S01 State Transportation Department
U141: S02 State Pk/Frst/Reserv
U142: S03 State Toll Authority
A143: Posting Equation: | U143: SX Other State Agency
A144: =MIN([1]Report!S33:V37) -> 2.03 | B144: =VLOOKUP('Dropdown '!A144,B147:D151,2,FALSE) -> 38.75 | U144: L01 County Highway Agency
U145: L02 Town/Township Highway Agency
U146: L03 City/Municipal Highway Agency
A147: SU4 | B147: =[1]Report!S33 -> 2.66 | C147: 27 | D147: =[1]Report!W33 -> 71.86 | U147: L04 Local Park/Frst/Reserv
A148: SU5 | B148: =[1]Report!S34 -> 2.36 | C148: 31 | D148: =[1]Report!W34 -> 73.32 | U148: L05 Local Toll Authority
A149: SU6 | B149: =[1]Report!S35 -> 2.18 | C149: 34.75 | D149: =[1]Report!W35 -> 75.88 | U149: LX Other Local Agency
A150: SU7 | B150: =[1]Report!S36 -> 2.03 | C150: 38.75 | D150: =[1]Report!W36 -> 78.68 | U150: F01 Agricultural Research Servis (ARS)
A151: NE Type 3 | B151: =[1]Report!S37 -> 2.91 | C151: 25 | D151: =[1]Report!W37 -> 72.87 | U151: F02 Deparment of Energy (DOE)
U152: F03 GSA
B153: Posting Contestants | U153: F04 NASA
B154: =IF('Report '!U38<1,'Report '!Z38, "") ->  | U154: F05 Smithsonian - National Zoo
B155: =IF('Report '!U39<1,'Report '!Z39, "") ->  | U155: F06 Tennessee Valley Authority (TVA)
B156: =IF('Report '!U40<1,'Report '!Z40, "") ->  | U156: F07 U.S. Department of Veterans Affairs
B157: =IF('Report '!U41<1,'Report '!Z41, "") ->  | U157: F08 FEMA
B158: =IF('Report '!U42<1,'Report '!Z42, "") ->  | U158: F09 USIBWC
B159: =TRUNC(MIN(B154:B158)) -> 0 | U159: FX Other Federal Agency
U160: FL01 Bureau of Indian Affairs (BIA)
U161: FL02 Bureau of Land Mangement (BLM)
U162: FL03 Bureau of Reclamation (USBR)
U163: FL04 U.S Fish and Wildlife Service
L164: =TRUNC(B154,1) ->  | U164: FL05 National Park Service (NPS)
U165: FL06 USACE
U166: FL07 U.S. Forest Service (USFS)
U167: FL0X Other Federal Lands Agency
U168: I Indian Tribal Government
U169: D01 Air Force
U170: D02 Army
U171: D03 Navy/Marines
U172: D04 Pentagon
U173: D05 National Security Agency (NSA)
U174: DX Other Deparment of Defense
U175: T Transit Agency/Authority
A194: =_xlfn.TEXTSPLIT('Copy and Paste'!A15," ") -> Member | B194: Name: | C194: G2
C204: TONS | D204: RF | E204: Component | F204: Location | G204: Percent
A205: HL-93 (US) | B205: Inventory | C205: ='Culvert Copy and Paste'!E2 -> 62.09 | D205: ='Culvert Copy and Paste'!F2 -> 1.725 | E205: ='Culvert Copy and Paste'!G2 -> Top Slab 2 | F205: ='Culvert Copy and Paste'!H2 -> 12 | G205: ='Culvert Copy and Paste'!I2 -> 100 | H205: ='Culvert Copy and Paste'!J2 -> Flexure | I205: ='Culvert Copy and Paste'!K2 -> As Requested | J205: ='Culvert Copy and Paste'!L2 -> As Requested
A206: HL-93 (US) | B206: Inventory | C206: ='Culvert Copy and Paste'!E4 -> 54.58 | D206: ='Culvert Copy and Paste'!F4 -> 1.516 | E206: ='Culvert Copy and Paste'!G4 -> Top Slab 1 | F206: ='Culvert Copy and Paste'!H4 -> 2.4 | G206: ='Culvert Copy and Paste'!I4 -> 20 | H206: ='Culvert Copy and Paste'!J4 -> Flexure | I206: ='Culvert Copy and Paste'!K4 -> As Requested | J206: ='Culvert Copy and Paste'!L4 -> As Requested
A207: HL-93 (US) | B207: Operating | C207: ='Culvert Copy and Paste'!E3 -> 80.48 | D207: ='Culvert Copy and Paste'!F3 -> 2.236 | E207: ='Culvert Copy and Paste'!G3 -> Top Slab 2 | F207: ='Culvert Copy and Paste'!H3 -> 12 | G207: ='Culvert Copy and Paste'!I3 -> 100 | H207: ='Culvert Copy and Paste'!J3 -> Flexure | I207: ='Culvert Copy and Paste'!K3 -> As Requested | J207: ='Culvert Copy and Paste'!L3 -> As Requested
A208: HL-93 (US) | B208: Operating | C208: ='Culvert Copy and Paste'!E5 -> 70.75 | D208: ='Culvert Copy and Paste'!F5 -> 1.965 | E208: ='Culvert Copy and Paste'!G5 -> Top Slab 1 | F208: ='Culvert Copy and Paste'!H5 -> 2.4 | G208: ='Culvert Copy and Paste'!I5 -> 20 | H208: ='Culvert Copy and Paste'!J5 -> Flexure | I208: ='Culvert Copy and Paste'!K5 -> As Requested | J208: ='Culvert Copy and Paste'!L5 -> As Requested
E213: Inventory | F213: =MIN(C205,C206) -> 54.58 | G213: =VLOOKUP($F$213,$C205:$J$206,2,FALSE) -> 1.516 | H213: =VLOOKUP($F$213,$C205:$J$206,3,FALSE) -> Top Slab 1 | I213: =VLOOKUP($F$213,$C205:$J$206,4,FALSE) -> 2.4 | J213: =VLOOKUP($F$213,$C205:$J$206,5,FALSE) -> 20 | K213: =VLOOKUP($F$213,$C205:$J$206,6,FALSE) -> Flexure
H214: =_xlfn.TEXTSPLIT(H213," ") -> Top | I214: Slab | J214: 1
H215: =(H214&" "&I214) -> Top Slab | I215: =J214 -> 1
E218: Operating | F218: =MIN(C207,C208) -> 70.75 | G218: =VLOOKUP($F$218,$C$207:$J$208,2,FALSE) -> 1.965 | H218: =VLOOKUP($F$218,$C$207:$J$208,3,FALSE) -> Top Slab 1 | I218: =VLOOKUP($F$218,$C$207:$J$208,4,FALSE) -> 2.4 | J218: =VLOOKUP($F$218,$C$207:$J$208,5,FALSE) -> 20 | K218: =VLOOKUP($F$218,$C$207:$J$208,6,FALSE) -> Flexure
H219: =_xlfn.TEXTSPLIT(H218," ") -> Top | I219: Slab | J219: 1
H220: =(H219&" "&I219) -> Top Slab | I220: =J219 -> 1
B226: Member
A227: 1 NE Type 3 | B227: ='Culvert Copy and Paste'!G6 -> Top Slab 1 | E227: =_xlfn.TEXTSPLIT(B227," ",) -> Top | F227: Slab | G227: 1 | I227: =E227&" "&F227 -> Top Slab | J227: =G227 -> 1
A228: 2 NE Type 3S2 | B228: ='Culvert Copy and Paste'!G7 -> Top Slab 1 | E228: =_xlfn.TEXTSPLIT(B228," ",) -> Top | F228: Slab | G228: 1 | I228: =E228&" "&F228 -> Top Slab | J228: =G228 -> 1
A229: 3 NE Type 3-3 | B229: ='Culvert Copy and Paste'!G8 -> Top Slab 1 | E229: =_xlfn.TEXTSPLIT(B229," ",) -> Top | F229: Slab | G229: 1 | I229: Top Slab | J229: 1
A230: EV2 | B230: ='Culvert Copy and Paste'!G9 -> Top Slab 1 | E230: =_xlfn.TEXTSPLIT(B230," ",) -> Top | F230: Slab | G230: 1 | I230: Top Slab | J230: 1
A231: EV3 | B231: ='Culvert Copy and Paste'!G10 -> Top Slab 1 | E231: =_xlfn.TEXTSPLIT(B231," ",) -> Top | F231: Slab | G231: 1 | I231: Top Slab | J231: 1
A232: SU4 | B232: ='Culvert Copy and Paste'!G11 -> Bottom Slab 3 | E232: =_xlfn.TEXTSPLIT(B232," ",) -> Bottom | F232: Slab | G232: 3 | I232: Bottom Slab | J232: 3
A233: SU5 | B233: ='Culvert Copy and Paste'!G12 -> Bottom Slab 3 | E233: =_xlfn.TEXTSPLIT(B233," ",) -> Bottom | F233: Slab | G233: 3 | I233: Bottom Slab | J233: 3
A234: SU6 | B234: ='Culvert Copy and Paste'!G13 -> Bottom Slab 3 | E234: =_xlfn.TEXTSPLIT(B234," ",) -> Bottom | F234: Slab | G234: 3 | I234: Bottom Slab | J234: 3
A235: SU7 | B235: ='Culvert Copy and Paste'!G14 -> Bottom Slab 3 | E235: =_xlfn.TEXTSPLIT(B235," ",) -> Bottom | F235: Slab | G235: 3 | I235: Bottom Slab | J235: 3
A236: P3 | B236: ='Culvert Copy and Paste'!G15 -> Bottom Slab 3 | E236: =_xlfn.TEXTSPLIT(B236," ",) -> Bottom | F236: Slab | G236: 3 | I236: Bottom Slab | J236: 3
B239: Culvert Posting
B240: =IF('Culvert Report'!U38<1,'Culvert Report'!Z38, "") -> 
B241: =IF('Culvert Report'!U39<1,'Culvert Report'!Z39, "") -> 
... 30 more rows
